bitfinex-derivatives/quotes_SOLF0:USTF0_20250613
["timestamp","ask_amount","ask_price","bid_price","bid_amount"]
[1749797933100,6.9074,144.68,144.67,0.04923415]
[1749797936597,9.1112,144.68,144.67,0.04923415]
[1749797937004,11.3602,144.68,144.67,0.04923415]
[1749797938104,13.6633,144.68,144.67,0.04923415]
[1749797938701,6.7559,144.68,144.67,0.04923415]
[1749797939203,13.6633,144.68,144.67,0.04923415]
[1749797939403,6.7559,144.68,144.67,0.04923415]
[1749797940704,0.04442989,144.69,144.67,0.04923415]
[1749797941208,0.04442989,144.69,144.67,8.64539936]
[1749797941603,0.04442989,144.69,144.67,6.95693415]
[1749797942807,0.04442989,144.69,144.67,0.04923415]
[1749797943707,0.04442989,144.69,144.68,6.9074]
[1749797944404,4.6583,144.74,144.72,6.9054]
[1749797944709,5.87737546,144.73,144.7,8.59616521]
[1749797944909,5.87737546,144.72,144.7,8.59616521]
[1749797945112,2.3575,144.74,144.71,6.9057]
[1749797945311,5.88513381,144.73,144.71,0.04583021]
[1749797945506,0.04648081,144.74,144.72,8.58290861]
[1749797945708,0.04648081,144.74,144.73,6.905]
[1749797946210,0.04648081,144.74,144.71,41.78583021]
[1749797946211,5.93901875,144.74,144.71,50.36873882]
[1749797946509,0.04648081,144.74,144.71,50.36873882]
[1749797946711,0.04648081,144.74,144.73,8.58290861]
[1749797946914,5.94670578,144.74,144.73,15.48790861]
[1749797947102,0.04648081,144.74,144.73,15.48790861]
[1749797947708,5.94966755,144.74,144.72,6.9054]
[1749797947906,5.90354593,144.73,144.72,6.9054]
[1749797948805,5.90354593,144.73,144.71,48.69173021]
[1749797949007,5.90354593,144.72,144.71,0.04583021]
[1749797949612,5.90354593,144.72,144.71,6.95183021]
[1749797951210,5.90354593,144.72,144.71,11.96075964]
[1749797951710,0.04648081,144.74,144.73,6.905]
[1749797951914,5.98867347,144.74,144.73,11.91392943]
[1749797952914,5.98867347,144.74,144.71,0.04583021]
[1749797952915,5.98867347,144.74,144.72,5.00892943]
[1749797953105,5.94219266,144.73,144.72,5.00892943]
[1749797953707,5.94219266,144.73,144.71,0.04583021]
[1749797953906,5.94219266,144.72,144.71,0.04583021]
[1749797954117,5.94219266,144.72,144.71,6.95183021]
[1749797954316,0.04648081,144.74,144.71,0.04583021]
[1749797954521,0.04648081,144.74,144.73,5.00892943]
[1749797954911,0.04648081,144.74,144.73,11.91392943]
[1749797956820,0.04648081,144.74,144.73,5.00892943]
[1749797957808,0.04648081,144.74,144.72,46.08892943]
[1749797958014,0.04648081,144.74,144.73,6.905]
[1749797959718,55.03314185,144.8,144.73,5.00420982]
[1749797959719,8.7239265,144.8,144.73,5.00420982]
[1749797959913,6.3936265,144.82,144.79,5.00420982]
[1749797960127,10.7431265,144.84,144.79,5.00420982]
[1749797960829,10.7431265,144.84,144.78,41.08]
[1749797960830,0.04829945,144.83,144.81,5.00420982]
[1749797961118,0.04829945,144.83,144.8,0.04457468]
[1749797961317,0.04829945,144.83,144.8,6.94617468]
[1749797962021,0.04829945,144.83,144.81,6.9012]
[1749797962324,0.04829945,144.83,144.8,0.04457468]
[1749797963826,0.04829945,144.83,144.8,6.94627468]
[1749797964415,6.94859945,144.83,144.8,6.94627468]
[1749797965015,0.04829945,144.83,144.8,6.94627468]
[1749797966223,0.04829945,144.83,144.8,0.04457468]
[1749797966823,0.04829945,144.83,144.8,6.94617468]
[1749797968229,0.04829945,144.83,144.8,0.04457468]
[1749797969021,5.94678942,144.82,144.8,0.04457468]
[1749797969229,0.04829945,144.83,144.8,0.04457468]
[1749797969534,0.04829945,144.83,144.8,8.62043594]
[1749797970126,0.04829945,144.83,144.8,0.04457468]
[1749797970328,5.99326097,144.83,144.8,0.04457468]
[1749797970528,0.04829945,144.83,144.8,0.04457468]
[1749797972431,0.04829945,144.83,144.8,8.62043594]
[1749797972933,0.04829945,144.83,144.81,6.9009]
[1749797973235,0.04829945,144.83,144.8,8.62043594]
[1749797973433,0.04829945,144.83,144.82,6.9007]
[1749797976328,0.04829945,144.83,144.81,15.47455298]
[1749797977238,0.04829945,144.83,144.82,56.53425298]
[1749797980638,0.04829945,144.83,144.82,41.06]
[1749797980832,0.04829945,144.83,144.8,0.04457468]
[1749797981532,0.04829945,144.83,144.8,6.94597468]
[1749797981739,0.04829945,144.83,144.8,0.04457468]
[1749797982136,0.04829945,144.83,144.81,6.9009]
[1749797982337,0.04829945,144.83,144.81,15.4754511]
[1749797982738,0.04829945,144.83,144.82,6.9007]
[1749797984634,2.73902298,144.85,144.84,6.8998]
[1749797984843,2.73902298,144.85,144.84,15.4743511]
[1749797985339,2.73902298,144.85,144.84,11.8988169]
[1749797985742,2.73902298,144.85,144.83,41.07027166]
[1749797985942,2.73902298,144.85,144.8,41.0]
[1749797986148,9.63882298,144.85,144.8,41.0]
[1749797986336,2.73902298,144.85,144.8,6.9016]
[1749797986537,7.73803988,144.85,144.78,397.52]
[1749797986744,6.9002,144.84,144.78,397.52]
[1749797987045,0.0470293,144.82,144.8,6.95282338]
[1749797987640,0.0470293,144.82,144.81,6.9016]
[1749797990449,0.0470293,144.82,144.8,6.95312338]
[1749797990944,0.0470293,144.82,144.8,0.05112338]
[1749797991141,0.0470293,144.82,144.8,6.95302338]
[1749797991345,0.0470293,144.82,144.8,0.05112338]
[1749797991741,0.0470293,144.82,144.81,6.9016]
[1749797994342,2.73902298,144.85,144.84,6.9002]
[1749797996238,0.05256128,144.86,144.85,6.8997]
[1749797996437,2.3393,144.94,144.85,49.59859074]
[1749797996644,5.95692174,144.93,144.91,8.57859074]
[1749797996846,2.3393,144.94,144.92,6.896]
[1749797997046,5.9314275,144.93,144.92,6.896]
[1749797997246,2.3393,144.94,144.92,6.896]
[1749797997450,2.3830431,144.94,144.92,6.9458139]
[1749797998153,0.0437431,144.94,144.93,15.47449074]
[1749797998445,8.86529002,144.94,144.93,15.47449074]
[1749797998651,8.86529059,144.94,144.93,15.47449074]
[1749797998840,8.86529073,144.94,144.93,15.47449074]
[1749797999040,5.99434326,144.94,144.93,15.47449074]
[1749797999247,8.86528408,144.94,144.93,15.47449074]
[1749797999553,8.8652677,144.94,144.93,8.57859074]
[1749797999945,8.86527393,144.94,144.93,8.57859074]
[1749798000250,8.86527279,144.94,144.93,8.57859074]
[1749798000549,8.86526699,144.94,144.92,8.62840464]
[1749798000751,0.0437431,144.94,144.92,0.0498139]
[1749798001141,5.95315756,144.93,144.92,0.0498139]
[1749798001342,8.82424619,144.93,144.87,8.57859074]
[1749798001543,6.8973,144.91,144.85,6.8997]
[1749798001750,19.71854619,144.9,144.81,42.82]
[1749798002058,5.95315756,144.89,144.85,6.8995]
[1749798002240,5.95315756,144.88,144.84,8.57859074]
[1749798002553,0.04829299,144.87,144.85,0.04583339]
[1749798002755,0.04829299,144.87,144.86,6.8989]
[1749798002954,0.04829299,144.87,144.85,0.04583339]
[1749798003445,9.299e-05,144.87,144.86,15.47779074]
[1749798003648,5.95758326,144.94,144.86,8.57859074]
[1749798003848,8.84674509,144.93,144.85,42.82]
[1749798004046,8.57859074,144.91,144.83,42.82]
[1749798004250,15.74498702,144.9,144.84,6.8999]
[1749798004455,5.95758326,144.89,144.84,6.8999]
[1749798004646,6.00679738,144.88,144.86,0.04503148]
[1749798004846,0.04921412,144.88,144.86,0.04503148]
[1749798005048,5.98045893,144.87,144.86,0.04503148]
[1749798005245,0.04921412,144.88,144.86,0.04503148]
[1749798006053,0.04921412,144.88,144.86,8.62362222]
[1749798006463,0.04921412,144.88,144.86,0.04503148]
[1749798007355,0.04921412,144.88,144.86,8.62362222]
[1749798007653,0.04921412,144.88,144.86,0.04503148]
[1749798008654,6.94761412,144.88,144.86,0.04503148]
[1749798008849,0.04921412,144.88,144.86,0.04503148]
[1749798009049,0.04921412,144.88,144.83,49.7203]
[1749798009245,0.04921412,144.88,144.83,42.82]
[1749798009751,8.8583749,144.87,144.81,8.57859074]
[1749798010054,8.57859074,144.88,144.81,8.57859074]
[1749798010250,0.04581701,144.85,144.83,0.04447373]
[1749798010850,0.04581701,144.85,144.8,42.82]
[1749798011159,8.86076776,144.84,144.8,49.7217]
[1749798011358,0.04581701,144.85,144.8,42.82]
[1749798011552,5.98195796,144.84,144.8,42.82]
[1749798011753,6.94561701,144.85,144.81,0.05284746]
[1749798012061,5.98188914,144.84,144.81,0.05284746]
[1749798012360,5.98188914,144.83,144.73,1.8528]
[1749798012559,8.85202292,144.82,144.75,42.82]
[1749798012756,15.75408395,144.81,144.75,42.82]
[1749798012952,2.4036,144.82,144.75,42.82]
[1749798013160,17.43187334,144.81,144.75,42.82]
[1749798013457,2.4036,144.82,144.77,0.04941415]
[1749798013458,0.05000741,144.79,144.77,0.04941415]
[1749798014160,8.62859815,144.79,144.72,42.82]
[1749798014356,8.57859074,144.79,144.72,42.82]
[1749798014661,8.85175375,144.78,144.72,42.82]
[1749798014851,8.57859074,144.79,144.74,6.9047]
[1749798015052,8.86024637,144.78,144.75,0.05253943]
[1749798015261,0.05061749,144.78,144.75,0.05253943]
[1749798015457,6.95391749,144.78,144.75,0.05253943]
[1749798015757,6.95391749,144.78,144.7,8.57859074]
[1749798015758,17.38655442,144.77,144.69,42.84]
[1749798015959,8.57859074,144.75,144.64,399.4275]
[1749798016152,2.87177421,144.74,144.68,42.84]
[1749798016461,8.57859074,144.75,144.68,42.84]
[1749798016659,0.04760891,144.73,144.7,0.04870155]
[1749798016863,8.62619965,144.73,144.7,0.04870155]
[1749798017157,0.04760891,144.73,144.7,0.04870155]
[1749798017362,8.62619965,144.73,144.7,0.04870155]
[1749798018060,0.04760891,144.73,144.7,0.04870155]
[1749798018450,8.62619965,144.73,144.7,0.04870155]
[1749798018654,8.57859074,144.71,144.65,42.84]
[1749798019156,2.3095,144.7,144.65,49.7489]
[1749798019355,8.7268265,144.76,144.66,8.57859074]
[1749798019661,0.0496651,144.72,144.7,0.05208038]
[1749798020162,8.62825584,144.72,144.65,42.84]
[1749798020662,6.9072,144.7,144.65,49.7489]
[1749798020861,6.9072,144.7,144.65,42.84]
[1749798021067,10.88809074,144.75,144.66,51.43859074]
[1749798021263,0.04453707,144.72,144.7,8.57859074]
[1749798021763,0.04453707,144.72,144.69,0.04946539]
[1749798022761,0.04453707,144.72,144.7,6.9069]
[1749798023158,42.86,144.8,144.7,51.43859074]
[1749798023367,5.85954877,144.79,144.7,51.43859074]
[1749798023861,8.57859074,144.78,144.7,42.86]
[1749798024063,10.86109074,144.78,144.7,51.43859074]
[1749798024357,0.04917059,144.75,144.73,0.04837754]
[1749798029464,0.04917059,144.75,144.73,8.62696828]
[1749798029661,0.04917059,144.75,144.74,6.905]
[1749798030756,0.04917059,144.75,144.73,0.04837754]
[1749798031760,6.905,144.74,144.73,0.04837754]
[1749798032369,6.95387059,144.75,144.73,0.04837754]
[1749798032765,6.905,144.74,144.73,0.04837754]
[1749798033271,0.04917059,144.75,144.73,0.04837754]
[1749798033474,6.95377059,144.75,144.73,0.04837754]
[1749798033665,0.04917059,144.75,144.73,0.04837754]
[1749798034573,6.95397059,144.75,144.73,0.04837754]
[1749798034777,0.04917059,144.75,144.73,0.04837754]
[1749798035067,6.95387059,144.75,144.73,0.04837754]
[1749798035662,0.04917059,144.75,144.73,0.04837754]
[1749798036473,0.04917059,144.75,144.73,8.62696828]
[1749798036973,0.04917059,144.75,144.73,0.04837754]
[1749798037773,0.04917059,144.75,144.74,8.58748531]
[1749798038474,0.04917059,144.75,144.74,15.49248531]
[1749798038765,0.04917059,144.75,144.73,0.04837754]
[1749798038975,6.95377059,144.75,144.73,0.04837754]
[1749798039766,6.905,144.74,144.73,0.04837754]
[1749798040273,6.95387059,144.75,144.73,0.04837754]
[1749798040775,0.04917059,144.75,144.73,0.04837754]
[1749798040976,6.905,144.74,144.73,0.04837754]
[1749798042473,6.95377059,144.75,144.73,0.04837754]
[1749798043577,0.04917059,144.75,144.73,6.95377754]
[1749798045379,6.95367059,144.75,144.73,0.04837754]
[1749798046373,0.04917059,144.75,144.73,6.95377754]
[1749798047673,6.95367059,144.75,144.73,0.04837754]
[1749798047874,0.04917059,144.75,144.73,0.04837754]
[1749798048075,6.905,144.74,144.73,0.04837754]
[1749798048275,0.04917059,144.75,144.73,0.04837754]
[1749798048778,0.04917059,144.75,144.67,8.58748531]
[1749798048968,57.09318531,144.77,144.67,8.58748531]
[1749798049171,6.906,144.72,144.67,8.58748531]
[1749798049474,57.09318531,144.77,144.67,8.58748531]
[1749798049667,6.9072,144.7,144.68,0.04793332]
[1749798049869,6.95442309,144.7,144.68,0.04692497]
[1749798050073,0.04722309,144.7,144.68,0.04692497]
[1749798050269,0.04722309,144.7,144.68,6.95472497]
[1749798051664,0.04722309,144.7,144.68,0.04692497]
[1749798051868,6.95422309,144.7,144.68,0.04692497]
[1749798052071,0.04722309,144.7,144.68,6.95472497]
[1749798052776,0.04722309,144.7,144.69,6.9073]
[1749798053081,0.04722309,144.7,144.68,8.63441028]
[1749798053082,5.86451146,144.75,144.68,8.63441028]
[1749798053280,48.5057,144.77,144.72,6.9058]
[1749798053478,5.85084618,144.76,144.7,52.66748531]
[1749798053779,6.9052,144.74,144.71,6.9061]
[1749798054080,6.95831334,144.74,144.71,6.95235174]
[1749798054876,6.9055,144.73,144.71,6.95235174]
[1749798055076,6.9055,144.73,144.71,0.04625174]
[1749798056682,6.9059,144.72,144.71,0.04625174]
[1749798056979,0.05311334,144.74,144.71,0.04625174]
[1749798057278,5.88015374,144.73,144.71,6.95245174]
[1749798057480,6.95831334,144.74,144.71,6.95245174]
[1749798057682,5.88466189,144.73,144.71,6.95245174]
[1749798057880,6.95831334,144.74,144.71,6.95245174]
[1749798058083,12.7901761,144.73,144.71,0.04625174]
[1749798058282,5.88648093,144.72,144.71,0.04625174]
[1749798058477,12.79238093,144.72,144.71,0.04625174]
[1749798059486,5.88648093,144.72,144.71,6.95265174]
[1749798059675,0.05311334,144.74,144.71,0.04625174]
[1749798059877,12.79258803,144.73,144.71,0.04625174]
[1749798060078,5.88724044,144.72,144.71,0.04625174]
[1749798060482,12.79314044,144.72,144.71,0.04625174]
[1749798061281,5.88724044,144.72,144.71,0.04625174]
[1749798061483,6.9056,144.73,144.71,0.04625174]
[1749798061686,0.05311334,144.74,144.71,0.04625174]
[1749798061985,6.9059,144.72,144.71,0.04625174]
[1749798062190,12.80876449,144.72,144.71,0.04625174]
[1749798063086,5.90286449,144.72,144.71,0.04625174]
[1749798063281,6.9056,144.73,144.71,0.04625174]
[1749798063480,5.89594116,144.72,144.71,0.04625174]
[1749798063681,14.49130433,144.72,144.59,397.82]
[1749798063881,8.09744116,144.71,144.63,42.44]
[1749798064081,8.09744116,144.71,144.63,51.03558858]
[1749798064082,5.89594116,144.7,144.63,51.03558858]
[1749798064278,6.9081,144.68,144.65,6.9092]
[1749798064484,2.2015,144.71,144.63,51.03558858]
[1749798064684,0.0503418,144.68,144.66,0.05047119]
[1749798065579,6.9083,144.67,144.66,0.05047119]
[1749798065781,12.8059995,144.67,144.66,0.05047119]
[1749798065985,5.8976995,144.67,144.66,0.05047119]
[1749798066494,0.0503418,144.68,144.66,0.05047119]
[1749798066696,6.9083,144.67,144.66,0.05047119]
[1749798067096,0.0503418,144.68,144.66,0.05047119]
[1749798067897,12.80175997,144.67,144.66,0.05047119]
[1749798068200,5.89345997,144.67,144.6,51.03558858]
[1749798068391,5.89345997,144.66,144.6,51.03558858]
[1749798068599,8.59558858,144.69,144.6,51.03558858]
[1749798068797,6.9096,144.65,144.61,6.9108]
[1749798069201,0.04958691,144.64,144.62,0.04785562]
[1749798069389,0.04958691,144.64,144.62,6.95835562]
[1749798069997,6.95928691,144.64,144.62,0.04785562]
[1749798070202,0.04958691,144.64,144.62,0.04785562]
[1749798071093,0.04958691,144.64,144.57,42.44]
[1749798071094,8.59558858,144.63,144.57,42.44]
[1749798071300,5.86101218,144.62,144.57,42.44]
[1749798071600,15.04572036,144.69,144.6,8.59558858]
[1749798071899,8.67571906,144.68,144.62,15.50588858]
[1749798072101,0.04818023,144.66,144.64,0.04687574]
[1749798072601,6.9094,144.65,144.64,0.04687574]
[1749798073105,4.6428,144.71,144.64,8.64246432]
[1749798073302,2.2461,144.71,144.67,8.59558858]
[1749798073702,2.2461,144.71,144.65,51.05558858]
[1749798074097,9.1527,144.71,144.67,6.908]
[1749798074404,0.04455392,144.69,144.67,6.95829327]
[1749798074599,0.04455392,144.69,144.67,6.95819327]
[1749798074904,0.04455392,144.69,144.67,8.64588185]
[1749798077306,4.4327,144.75,144.67,8.64588185]
[1749798077502,2.2362,144.75,144.7,8.59558858]
[1749798077803,2.2362,144.75,144.61,397.94]
[1749798077995,8.58889991,144.73,144.65,8.58889991]
[1749798078198,8.59316654,144.74,144.65,8.59316654]
[1749798078398,6.9577002,144.71,144.68,0.04654539]
[1749798078598,0.0513002,144.71,144.68,0.04654539]
[1749798079308,0.0513002,144.71,144.69,8.59316654]
[1749798080799,0.0513002,144.71,144.68,6.95414539]
[1749798080800,0.0513002,144.71,144.68,0.04654539]
[1749798081408,6.9073,144.69,144.68,0.04654539]
[1749798082416,6.9096,144.65,144.63,42.44]
[1749798082709,8.59316654,144.67,144.63,42.44]
[1749798082905,6.9097,144.64,144.63,42.44]
[1749798083109,6.9097,144.64,144.61,397.94]
[1749798083297,6.9097,144.64,144.61,397.98923532]
[1749798083503,0.04356123,144.64,144.61,397.98923532]
[1749798083899,0.04356123,144.64,144.61,404.90023532]
[1749798084309,6.9103,144.63,144.61,397.98923532]
[1749798084815,6.9107,144.62,144.61,0.04923532]
[1749798085507,0.04356123,144.64,144.61,0.04923532]
[1749798085710,0.04356123,144.64,144.61,42.50923532]
[1749798086307,0.04356123,144.64,144.62,6.9103]
[1749798086507,0.04356123,144.64,144.61,42.50923532]
[1749798087311,6.9105,144.63,144.61,42.50923532]
[1749798088514,6.9107,144.62,144.61,42.50923532]
[1749798088708,0.04356123,144.64,144.61,0.04923532]
[1749798089219,6.9105,144.63,144.61,0.04923532]
[1749798089811,6.9107,144.62,144.61,0.04923532]
[1749798091315,0.04356123,144.64,144.61,0.04923532]
[1749798091517,0.04356123,144.64,144.62,50.57316654]
[1749798091715,55.15246654,144.72,144.62,50.57316654]
[1749798092019,55.15246654,144.72,144.66,6.9085]
[1749798092218,13.17246654,144.72,144.63,8.59316654]
[1749798092415,6.9084,144.67,144.62,52.92136654]
[1749798092717,0.05271381,144.66,144.63,0.05020467]
[1749798093416,0.05271381,144.66,144.65,6.9092]
[1749798094215,0.05271381,144.66,144.64,6.9095]
[1749798094615,0.05271381,144.66,144.64,8.59316654]
[1749798095112,0.05271381,144.66,144.65,6.9092]
[1749798095317,0.05271381,144.66,144.64,8.59316654]
[1749798095621,6.45013178,144.74,144.64,15.51316654]
[1749798095808,11.02023178,144.77,144.7,8.59316654]
[1749798096013,8.68501476,144.76,144.7,8.59316654]
[1749798096217,8.68501476,144.75,144.72,8.59316654]
[1749798096423,2.81549289,144.74,144.69,8.59316654]
[1749798096630,6.95403184,144.73,144.7,0.04737098]
[1749798096921,0.04833184,144.73,144.7,0.04737098]
[1749798097227,0.04833184,144.73,144.7,6.95417098]
[1749798097821,6.95403184,144.73,144.7,0.04737098]
[1749798098020,0.04833184,144.73,144.7,0.04737098]
[1749798099226,6.95413184,144.73,144.7,6.95377098]
[1749798099420,0.04833184,144.73,144.7,0.04737098]
[1749798099828,0.04833184,144.73,144.71,6.906]
[1749798100318,0.04833184,144.73,144.7,8.64053752]
[1749798100518,0.04833184,144.73,144.7,15.54723752]
[1749798101422,0.04833184,144.73,144.7,8.64053752]
[1749798101636,0.04833184,144.73,144.72,8.59316654]
[1749798102227,0.04833184,144.73,144.7,0.04737098]
[1749798103025,6.9063,144.72,144.7,0.04737098]
[1749798103625,0.04833184,144.73,144.7,0.04737098]
[1749798104023,0.04833184,144.73,144.7,8.64053752]
[1749798104224,0.04833184,144.73,144.71,6.9064]
[1749798105026,6.95373184,144.73,144.71,6.9064]
[1749798105327,6.95373184,144.73,144.7,15.54723752]
[1749798105730,0.04833184,144.73,144.7,15.54723752]
[1749798106130,6.95403184,144.73,144.7,15.54723752]
[1749798106630,6.95403184,144.73,144.7,8.64053752]
[1749798106832,6.906,144.72,144.7,8.64053752]
[1749798107032,0.04833184,144.73,144.7,0.04737098]
[1749798107232,6.9064,144.71,144.7,0.04737098]
[1749798107630,12.80377593,144.71,144.7,0.04737098]
[1749798107832,6.9071,144.7,144.65,8.59316654]
[1749798108031,44.1895,144.73,144.65,8.59316654]
[1749798108222,5.89732201,144.72,144.66,6.9085]
[1749798108424,5.89732201,144.71,144.65,8.59316654]
[1749798108626,2.3814,144.71,144.65,8.59316654]
[1749798108821,2.3814,144.71,144.66,6.9084]
[1749798109128,6.95798473,144.69,144.67,0.04659851]
[1749798109535,0.05058473,144.69,144.67,0.04659851]
[1749798109722,6.9078,144.68,144.67,0.04659851]
[1749798110136,0.05058473,144.69,144.67,0.04659851]
[1749798110333,6.95828473,144.69,144.67,0.04659851]
[1749798110836,6.9078,144.68,144.67,0.04659851]
[1749798111531,42.01058473,144.69,144.63,8.59316654]
[1749798111733,41.96,144.69,144.62,8.59699222]
[1749798111947,5.89895962,144.68,144.62,8.59699222]
[1749798112232,6.9086,144.67,144.62,8.59699222]
[1749798112731,6.9086,144.67,144.63,0.04506532]
[1749798112732,0.0469419,144.66,144.63,0.04506532]
[1749798112927,0.0469419,144.66,144.64,8.59543883]
[1749798113337,0.0469419,144.66,144.63,8.64050415]
[1749798113532,0.0469419,144.66,144.64,6.9095]
[1749798114833,6.9557419,144.66,144.63,6.95506532]
[1749798115229,0.0469419,144.66,144.63,0.04506532]
[1749798115930,6.9095,144.65,144.63,0.04506532]
[1749798116232,0.0469419,144.66,144.63,0.04506532]
[1749798116537,50.67262851,144.65,144.58,8.59543883]
[1749798116722,41.98,144.65,144.6,8.59543883]
[1749798117027,41.52,144.68,144.62,8.59543883]
[1749798117230,5.90929728,144.67,144.62,8.59543883]
[1749798117534,0.04824648,144.66,144.63,0.0493683]
[1749798118135,0.04824648,144.66,144.64,8.59543883]
[1749798118632,6.95734648,144.66,144.63,6.9593683]
[1749798119230,6.95734648,144.66,144.63,11.97382954]
[1749798119630,0.04824648,144.66,144.64,6.9098]
[1749798121441,0.04824648,144.66,144.65,6.9093]
[1749798121634,0.04824648,144.66,144.63,5.06382954]
[1749798122236,0.04824648,144.66,144.65,5.01446124]
[1749798122733,0.04824648,144.66,144.63,0.0493683]
[1749798123635,5.93736425,144.66,144.63,0.0493683]
[1749798124236,5.93736425,144.66,144.59,46.53446124]
[1749798124435,5.93736425,144.66,144.59,5.01446124]
[1749798124436,10.90357901,144.65,144.59,5.01446124]
[1749798124642,47.42911777,144.64,144.59,5.01446124]
[1749798124835,6.9112,144.62,144.59,11.92656124]
[1749798125341,0.04682085,144.62,144.59,5.06096074]
[1749798125929,6.95782085,144.62,144.59,11.97306074]
[1749798126128,0.04682085,144.62,144.59,11.97306074]
[1749798126741,6.95792085,144.62,144.59,11.97306074]
[1749798127742,0.04682085,144.62,144.61,5.01446124]
[1749798127943,6.43109859,144.7,144.61,10.02892248]
[1749798128140,6.9085,144.67,144.65,5.01446124]
[1749798128339,41.54,144.7,144.65,5.01446124]
[1749798128540,5.87726595,144.69,144.65,5.01446124]
[1749798128743,6.9081,144.68,144.65,6.909]
[1749798129043,0.04773462,144.68,144.65,5.06019057]
[1749798129239,0.04773462,144.68,144.67,5.01446124]
[1749798130043,0.04773462,144.68,144.65,0.04572933]
[1749798130741,6.9089,144.66,144.65,0.04572933]
[1749798132243,5.86389823,144.66,144.59,5.01446124]
[1749798132446,8.04609823,144.66,144.59,5.01446124]
[1749798132638,2.1822,144.66,144.59,5.01446124]
[1749798132840,6.9105,144.63,144.6,6.9115]
[1749798133249,6.95522038,144.63,144.6,6.95970948]
[1749798133446,6.95522038,144.63,144.61,5.01446124]
[1749798134040,6.95522038,144.63,144.6,6.95970948]
[1749798134240,6.95522038,144.63,144.61,5.01446124]
[1749798134442,6.95522038,144.63,144.6,11.97417072]
[1749798136150,6.911,144.62,144.6,5.06267072]
[1749798136346,0.04472038,144.63,144.6,5.06267072]
[1749798136540,6.95522038,144.63,144.6,11.97407072]
[1749798136740,0.04472038,144.63,144.62,5.01446124]
[1749798137753,0.04472038,144.63,144.62,11.92526124]
[1749798139453,0.04472038,144.63,144.62,5.01446124]
[1749798139651,0.04472038,144.63,144.61,6.9111]
[1749798139852,0.04472038,144.63,144.62,5.01446124]
[1749798140051,0.04472038,144.63,144.62,11.92526124]
[1749798141856,6.9086,144.67,144.65,6.9091]
[1749798142152,2.3244,144.68,144.64,5.01446124]
[1749798142848,0.04724747,144.67,144.65,0.05147067]
[1749798143351,6.9089,144.66,144.65,0.05147067]
[1749798144751,13.66196229,144.66,144.58,46.55446124]
[1749798144949,2.2017,144.65,144.58,46.55446124]
[1749798145152,6.9106,144.63,144.6,6.9113]
[1749798145347,2.2017,144.65,144.6,6.9113]
[1749798145860,5.01994397,144.62,144.55,41.54]
[1749798146067,5.01994397,144.6,144.5,2.1868]
[1749798146364,5.01994397,144.58,144.52,6.9153]
[1749798146761,5.01994397,144.58,144.51,5.01994397]
[1749798146961,0.04709936,144.56,144.53,6.96559396]
[1749798147365,6.96099936,144.56,144.53,6.96559396]
[1749798147560,0.04709936,144.56,144.53,6.96559396]
[1749798147760,0.04709936,144.56,144.54,5.02062984]
[1749798148366,6.96089936,144.56,144.53,0.05059396]
[1749798148759,0.04709936,144.56,144.53,0.05059396]
[1749798150066,0.04709936,144.56,144.54,8.60857534]
[1749798150460,0.04709936,144.56,144.55,6.9141]
[1749798150758,0.04709936,144.56,144.54,8.60857534]
[1749798150759,0.04709936,144.56,144.53,8.6591693]
[1749798150952,0.04709936,144.56,144.54,6.9144]
[1749798151768,0.04709936,144.56,144.53,0.05059396]
[1749798151769,6.96079936,144.56,144.53,6.96549396]
[1749798152462,6.9143,144.55,144.53,0.05059396]
[1749798153064,0.04709936,144.56,144.53,8.6591693]
[1749798153456,0.04709936,144.56,144.53,49.9991693]
[1749798153866,0.04709936,144.56,144.55,6.9142]
[1749798154871,2.3384,144.6,144.59,6.9122]
[1749798155169,2.4028,144.62,144.56,8.60857534]
[1749798155372,2.4028,144.62,144.57,6.9128]
[1749798155571,6.912,144.6,144.57,6.9128]
[1749798155872,2.4028,144.62,144.55,8.60857534]
[1749798156072,6.913,144.58,144.57,0.04427595]
[1749798159266,6.9144,144.55,144.51,8.60857534]
[1749798159469,6.9144,144.55,144.52,6.9154]
[1749798160174,0.04881596,144.55,144.52,0.05201318]
[1749798160780,6.9154,144.53,144.52,0.05201318]
[1749798164075,0.04881596,144.55,144.52,8.66058852]
[1749798164577,6.9148,144.54,144.52,8.66058852]
[1749798164776,0.04881596,144.55,144.52,8.66058852]
[1749798165270,6.96301596,144.55,144.52,15.57598852]
[1749798165670,0.04881596,144.55,144.52,8.66058852]
[1749798167467,0.04881596,144.55,144.52,0.05201318]
[1749798168281,6.9146,144.54,144.52,0.05201318]
[1749798169675,0.04881596,144.55,144.52,0.05201318]
[1749798169879,0.04881596,144.55,144.53,8.60857534]
[1749798170175,0.04881596,144.55,144.54,6.9146]
[1749798171375,5.01798695,144.65,144.57,5.01798695]
[1749798171582,5.84183555,144.64,144.57,5.01798695]